Workbook

Sheet Sheet1
A1: 新滩盐场2024年边角塘（地）拟发包情况表
A2: 序号 | B2: 边角塘地点 | C2: 面积(亩) | D2: 养殖类型 | E2: 拟发包单价（元/亩） | F2: 拟收益（元） | G2: 备 注
A3: 1 | B3: 玉新二组 | C3: 5.93 | D3: 海水 | E3: 200 | F3: =C3*E3 -> 1186
A4: 2 | C4: 5.55 | D4: 海水 | E4: 200 | F4: =C4*E4 -> 1110
A5: 3 | C5: 7.48 | D5: 海水 | E5: 200 | F5: =C5*E5 -> 1496
B6: 小 计 | C6: =SUM(C3:C5) -> 18.96 | E6: 200 | F6: =SUM(F3:F5) -> 3792
A7: 4 | B7: 玉新四组 | C7: 12.11 | D7: 海水 | E7: 200 | F7: 2422
A8: 5 | C8: 10.44 | D8: 海水 | E8: 200 | F8: 2088
A9: 6 | C9: 21.55 | D9: 海水 | E9: 200 | F9: 4310
A10: 7 | C10: 9.84 | D10: 海水 | E10: 200 | F10: 1968
A11: 8 | C11: 16.58 | D11: 海水 | E11: 200 | F11: 3316
B12: 小 计 | C12: =SUM(C7:C11) -> 70.52 | E12: 200 | F12: =SUM(F7:F11) -> 14104
A13: 9 | B13: 玉新六组 | C13: 10 | D13: 海水 | E13: 200 | F13: 2000
A14: 10 | B14: 新生闸南东侧 | C14: 14.95 | D14: 海水 | E14: 200 | F14: 2990
A15: 11 | C15: 6.97 | D15: 海水 | E15: 200 | F15: 1394
B16: 小 计 | C16: =SUM(C14:C15) -> 21.92 | E16: 200 | F16: =SUM(F14:F15) -> 4384
A17: 12 | B17: 伏堆河东侧中段西侧 | C17: 12.67 | D17: 海水 | E17: 200 | F17: 2534
A18: 13 | C18: 26.26 | D18: 海水 | E18: 200 | F18: 5252
A19: 14 | C19: 19.96 | D19: 海水 | E19: 200 | F19: 3992
B20: 小 计 | C20: =SUM(C17:C19) -> 58.89 | E20: 200 | F20: =SUM(F17:F19) -> 11778
A21: 15 | B21: 新滩大桥两侧 | C21: 67.95 | D21: 海水 | E21: 200 | F21: 13590
A22: 16 | B22: 大框围南北侧 | C22: 83.9 | D22: 海水 | E22: 200 | F22: 16780
A23: 17 | C23: 44.4 | D23: 海水 | E23: 200 | F23: 8880
B24: 小 计 | C24: =SUM(C22:C23) -> 128.3 | E24: 200 | F24: =SUM(F22:F23) -> 25660
A25: 18 | B25: 跃进二份 | C25: 21.87 | D25: 淡水 | E25: 300 | F25: 6561
A26: 19 | B26: 滨响大道北侧 | C26: 105.19 | D26: 淡水 | E26: 300 | F26: 31557
A27: 20 | C27: 60.38 | D27: 淡水 | E27: 300 | F27: 18114
A28: 21 | C28: 56.3 | D28: 淡水 | E28: 300 | F28: 16890
A29: 22 | C29: 59.07 | D29: 淡水 | E29: 300 | F29: 17721
B30: 小 计 | C30: =SUM(C25:C29) -> 302.81 | E30: 300 | F30: =SUM(F25:F29) -> 90843
B31: 合 计 | C31: =C6+C12+C13+C16+C20+C21+C24+C30 -> 679.35 | F31: =F6+F12+F13+F16+F20+F21+F24+F30 -> 166151

Sheet 6.12
A1: 新滩盐场2024年零星边角池塘及流标池塘公开竞租中标候选人公示名单一览表
A2: 序号 | B2: 边角塘地点 | C2: 面积(亩) | D2: 养殖类型 | E2: 中标人
A3: 1标 | B3: 玉新西片 | C3: 174.67 | D3: 海水 | E3: 郁梅
A4: 2标 | B4: 大青垛 | C4: 100.36 | D4: 淡水 | E4: 方武之
B5: 新昇 | C5: 530.58 | D5: 淡水
B6: 小 计 | C6: =SUM(C4:C5) -> 630.94
A7: 3标 | B7: 玉新二组 | C7: 5.93 | D7: 海水 | E7: 黄海燕
C8: 5.55 | D8: 海水
C9: 7.48 | D9: 海水
B10: 小 计 | C10: =SUM(C7:C9) -> 18.96
A11: 4标 | B11: 玉新四组 | C11: 12.11 | D11: 海水 | E11: 顾立军
C12: 10.44 | D12: 海水
C13: 21.55 | D13: 海水
C14: 9.84 | D14: 海水
C15: 16.58 | D15: 海水
B16: 小 计 | C16: =SUM(C11:C15) -> 70.52
A17: 5标 | B17: 玉新六组 | C17: 10 | D17: 海水 | E17: 姚拥军
A18: 6标 | B18: 新生闸南东侧 | C18: 14.95 | D18: 海水 | E18: 秦成霞
C19: 6.97 | D19: 海水
B20: 小 计 | C20: =SUM(C18:C19) -> 21.92
A21: 7标 | B21: 伏堆河东侧中段西侧 | C21: 12.67 | D21: 海水 | E21: 刘树英
C22: 26.26 | D22: 海水
C23: 19.96 | D23: 海水
B24: 小 计 | C24: =SUM(C21:C23) -> 58.89
A25: 8标 | B25: 新滩大桥两侧 | C25: 67.95 | D25: 海水 | E25: 孙孝坤
A26: 9标 | B26: 大框围南北侧 | C26: 83.9 | D26: 海水 | E26: 顾明标
C27: 44.4 | D27: 海水
B28: 小 计 | C28: =SUM(C26:C27) -> 128.3
A29: 10标 | B29: 跃进二份 | C29: 21.87 | D29: 淡水 | E29: 宁三华
A30: 11标 | B30: 滨响大道北侧 | C30: 105.19 | D30: 淡水 | E30: 淮安通威饲料有限公司
C31: 60.38 | D31: 淡水
C32: 56.3 | D32: 淡水
C33: 59.07 | D33: 淡水
B34: 小 计 | C34: =SUM(C30:C33) -> 280.94
B35: 合 计 | C35: =C3+C6+C10+C16+C17+C20+C24+C25+C28+C29+C34 -> 1484.96

Sheet Sheet2
